bitfinex/quotes_ETHUSD_20241001
["timestamp","ask_amount","ask_price","bid_price","bid_amount"]
[1727815851405,0.04968126,2462.3,2461.9,0.08122497]
[1727815851599,0.04968126,2462.3,2461.3,4.06284]
[1727815851793,4.06161,2462.1,2461.1,4.0631]
[1727815851998,0.0496735,2462.2,2461.4,4.06268]
[1727815852311,2.51141959,2462.4,2461.4,4.06268]
[1727815852312,6.57259959,2462.4,2461.5,0.08123514]
[1727815852501,6.57259959,2462.4,2461.4,4.06268]
[1727815852689,0.04967778,2462.3,2461.1,4.0632]
[1727815853000,4.06144,2462.2,2461.4,4.06264]
[1727815853205,4.11111002,2462.2,2461.4,4.06264]
[1727815854134,0.04967002,2462.2,2461.5,0.08123896]
[1727815854641,2.51141959,2462.4,2461.6,0.08123888]
[1727815854642,6.57249959,2462.4,2461.6,0.08123888]
[1727815854929,6.57249959,2462.4,2461.1,4.06312]
[1727815854930,4.06208,2461.8,2461.1,4.06312]
[1727815855129,4.062,2461.9,2461.1,4.06312]
[1727815855333,0.0498348,2461.7,2461.2,0.08124782]
[1727815855517,4.062,2461.9,2461.2,0.08124782]
[1727815855518,4.1102461,2461.8,2461.2,0.08124782]
[1727815855717,0.04816753,2461.6,2461.0,0.08124789]
[1727815855920,0.04817182,2461.7,2461.1,4.14430824]
[1727815856122,0.04815976,2461.5,2461.3,4.06279]
[1727815856297,0.04816926,2461.6,2461.4,0.08124157]
[1727815856514,0.65724996,2462.3,2461.1,4.77761082]
[1727815856515,0.65724996,2462.3,2461.3,4.06278]
[1727815856843,4.109573,2462.2,2461.5,4.06251]
[1727815857016,4.109573,2462.2,2461.6,0.04173264]
[1727815857206,0.048113,2462.2,2461.6,4.06239]
[1727815857406,0.048113,2462.2,2462.1,4.06157]
[1727815857657,0.87081959,2462.4,2462.3,4.06124]
[1727815857949,0.87081959,2462.4,2462.3,7.0602272]
[1727815858843,0.87081959,2462.4,2461.7,1.5073]
[1727815859058,0.87081959,2462.4,2461.8,4.06196]
[1727815859059,0.91955655,2462.4,2461.8,4.06196]
[1727815859365,0.91955655,2462.4,2462.3,4.06124]
[1727815859831,0.91961109,2462.4,2462.2,4.0614]
[1727815860035,0.87081959,2462.4,2461.8,5.7279]
[1727815860233,0.87081959,2462.4,2461.4,3.0]
[1727815860565,0.04878721,2462.3,2461.8,4.06202]
[1727815860767,0.04878721,2462.3,2461.7,4.06217]
[1727815860922,0.87081959,2462.4,2462.3,4.06124]
[1727815861124,0.87081959,2462.4,2462.3,5.66164]
[1727815861331,1.5309,2464.1,2463.1,4.05988]
[1727815861332,4.05887,2463.8,2463.1,4.05988]
[1727815861557,4.05809,2464.3,2463.5,4.05926]
[1727815861864,4.05787,2464.4,2463.2,4.05964]
[1727815861865,4.05853,2464.0,2463.2,4.05964]
[1727815862080,4.05753,2464.6,2462.4,4.06094]
[1727815862081,4.05977,2463.2,2462.4,4.06094]
[1727815862390,4.06089,2462.6,2462.0,1.5418]
[1727815862528,4.06117,2462.4,2461.6,4.0623]
[1727815862837,4.06117,2462.4,2460.7,4.06383]
[1727815862838,4.06186,2462.0,2461.3,4.06274]
[1727815863023,1.915089,2462.6,2461.4,4.06269]
[1727815863225,1.915089,2462.6,2462.0,4.06157]
[1727815863441,1.509,2462.6,2462.1,0.05998256]
[1727815863743,5.72577,2463.1,2462.2,4.06132]
[1727815864065,4.06159,2462.1,2461.2,4.06302]
[1727815864278,4.06191,2461.9,2461.2,4.06302]
[1727815864448,4.06207,2461.8,2461.2,4.06302]
[1727815864833,4.0625,2461.6,2461.0,4.06334]
[1727815865034,4.062,2461.9,2461.2,4.06301]
[1727815865277,8.12403,2461.9,2461.3,0.08104921]
[1727815865425,1.535,2462.5,2461.3,0.08104921]
[1727815865627,4.0612,2462.4,2461.6,4.06231]
[1727815865830,4.05984,2463.2,2461.4,0.0594984]
[1727815865831,5.20102138,2464.0,2461.7,0.05949422]
[1727815866027,4.05795,2464.3,2462.5,4.06081]
[1727815866028,4.05986,2463.2,2462.5,4.06081]
[1727815866275,4.05986,2463.2,2461.8,0.03148784]
[1727815866276,4.06043,2462.8,2461.9,4.06181]
[1727815866458,9.26029138,2463.5,2461.9,4.06181]
[1727815866459,4.06023,2463.0,2461.9,3.0]
[1727815866650,4.06141,2462.2,2461.5,8.12489]
[1727815866858,4.06141,2462.2,2461.5,8.12486]
[1727815867063,1.5323,2462.4,2461.4,1.6185]
[1727815867277,1.5323,2462.4,2460.9,4.06344]
[1727815867278,4.06241,2461.6,2460.9,4.06344]
[1727815867435,4.06241,2461.6,2460.8,4.06368]
[1727815867436,4.0629,2461.3,2460.8,4.06368]
[1727815867631,4.0629,2461.3,2459.9,4.51568562]
[1727815867632,1.6351,2461.6,2460.0,1.5459]
[1727815867974,4.06278,2461.4,2460.0,1.99649562]
[1727815868273,4.06315,2461.2,2460.4,4.06437]
[1727815868473,0.04871601,2461.3,2460.4,4.06426]
[1727815868636,0.04871601,2461.3,2460.2,4.06465]
[1727815868637,4.06366,2460.9,2460.2,8.12925]
[1727815868832,0.0484646,2461.2,2460.0,1.5459]
[1727815869041,0.04844743,2460.8,2459.6,1.9184]
[1727815869357,1.5635,2461.1,2460.5,4.06407]
[1727815869671,4.06245,2461.6,2460.5,6.495322]
[1727815869997,1.5635,2461.8,2461.6,4.06232]
[1727815870286,1.5635,2463.0,2462.4,4.06097]
[1727815870581,1.5635,2463.0,2462.4,4.06098]
[1727815870745,1.5635,2463.0,2462.0,4.06161]
[1727815870948,4.06053,2462.8,2462.0,4.06161]
[1727815871280,6.185992,2463.0,2462.3,4.06122]
[1727815871281,4.06036,2462.9,2462.3,4.06122]
[1727815871513,0.04637185,2462.7,2462.3,4.06122]
[1727815871724,6.186042,2463.0,2461.9,4.06181]
[1727815871725,2.125832,2463.0,2461.9,4.06181]
[1727815872013,0.04664093,2462.6,2462.1,4.06157]
[1727815872174,1.5635,2463.0,2461.9,4.06182]
[1727815872371,4.06109,2462.4,2461.8,3.0]
[1727815872605,8.12228,2462.4,2461.8,3.0]
[1727815872769,0.04662199,2462.3,2461.8,4.06196]
[1727815872971,0.04662199,2462.3,2462.2,4.0614]
[1727815873321,1.5635,2463.0,2462.4,8.12202]
[1727815873504,1.5635,2463.0,2462.7,4.06049]
[1727815873685,1.5635,2463.0,2462.6,4.06067]
[1727815874209,1.5635,2463.0,2462.4,4.061]
[1727815874623,4.06035,2462.9,2462.2,4.06132]
[1727815874921,4.06049,2462.8,2462.0,4.06164]
[1727815875236,0.968409,2462.9,2462.3,4.06121]
[1727815875237,4.06034,2462.9,2462.3,4.06121]
[1727815875419,4.06027,2462.9,2462.4,0.08119782]
[1727815875722,4.06027,2462.9,2461.8,4.06201]
[1727815875723,4.06117,2462.4,2461.8,8.12398]
[1727815876016,5.028683,2462.9,2462.1,4.06145]
[1727815876017,4.06058,2462.7,2462.1,4.06145]
[1727815876172,4.06091,2462.5,2461.9,4.0618]
[1727815876369,4.06118,2462.4,2461.7,4.06213]
[1727815876573,4.06171,2462.1,2461.5,7.06246]
[1727815876769,4.06169,2462.1,2461.3,4.06279]
[1727815876973,0.559899,2462.1,2461.1,4.06314]
[1727815877220,4.06237,2461.7,2461.1,4.06314]
[1727815877511,1.5373,2462.2,2461.1,4.06314]
[1727815877734,4.06224,2461.7,2461.1,4.06314]
[1727815877922,4.06068,2462.7,2460.6,1.5755]
[1727815877923,1.6593,2462.7,2461.0,4.06327]
[1727815878072,1.6593,2462.7,2461.9,4.06174]
[1727815878073,5.71998,2462.7,2461.9,4.06174]
[1727815878274,1.6593,2462.7,2462.1,4.06155]
[1727815878516,4.06094,2462.5,2461.9,4.06181]
[1727815878674,4.06094,2462.5,2461.5,1.5755]
[1727815878675,4.06041,2462.9,2461.5,1.5755]
[1727815878875,4.06041,2462.9,2462.1,4.06152]
[1727815879101,1.5089,2463.3,2462.1,4.06152]
[1727815879418,4.06059,2462.7,2462.1,4.06148]
[1727815879609,5.03081214,2463.2,2462.1,4.06146]
[1727815879610,4.06054,2462.8,2462.1,4.06146]
[1727815879938,1.5089,2462.5,2461.1,1.989227]
[1727815880089,4.06174,2462.0,2461.5,4.06253]
[1727815880288,4.06175,2462.0,2461.2,4.06296]
[1727815880488,8.12363,2462.0,2461.4,4.06267]
[1727815880716,4.06196,2461.9,2461.4,4.06267]
[1727815880987,4.06175,2462.0,2461.2,4.06295]
[1727815880988,4.06183,2462.0,2461.2,4.06295]
[1727815881193,4.06193,2461.9,2461.3,4.06281]
[1727815881395,4.06193,2461.9,2461.2,4.06293]
[1727815881623,4.06228,2461.7,2461.2,4.06293]
[1727815881798,4.06228,2461.7,2460.6,1.5622]
[1727815881799,4.06307,2461.2,2460.6,8.12789]
[1727815882002,4.06332,2461.1,2460.4,4.06428]
[1727815882315,1.5165,2461.7,2460.5,4.876972]
[1727815882516,1.5165,2461.7,2460.5,4.06409]
[1727815882517,4.06341,2461.0,2460.5,4.06409]
[1727815882836,4.06341,2461.0,2460.2,1.527]
[1727815882837,4.06358,2460.9,2460.2,1.527]
[1727815883032,1.5928,2460.9,2460.3,4.06442]
[1727815883201,1.5928,2460.9,2460.1,4.06482]
[1727815883525,5.20102138,2461.8,2460.1,4.06482]
[1727815883526,1.5928,2461.4,2460.8,4.06358]
[1727815883835,1.5034,2461.8,2461.2,4.06294]
[1727815884035,0.04641184,2461.3,2461.1,4.06321]
[1727815884246,1.5034,2462.2,2460.7,4.06388]
[1727815884401,1.5034,2462.2,2461.0,4.06333]
[1727815884607,4.06221,2461.8,2461.2,4.06296]
[1727815884796,4.06221,2461.8,2461.2,8.12591]
[1727815885130,0.04643074,2461.7,2461.2,4.06295]
[1727815885334,4.10872074,2461.7,2461.2,4.06295]
[1727815885533,0.04643074,2461.7,2461.0,4.06328]
[1727815885853,4.06282,2461.4,2460.9,3.0]
[1727815885999,4.06246,2461.6,2461.0,4.06336]
[1727815886204,0.04642053,2461.3,2461.0,4.06327]
[1727815886398,8.12331,2462.1,2460.9,0.706363]
[1727815886601,4.0616,2462.1,2461.3,4.06275]
[1727815886824,0.42521861,2462.5,2461.1,4.06311]
[1727815887031,8.12238,2462.4,2461.7,4.06214]
[1727815887212,4.06126,2462.3,2461.7,4.06214]
[1727815887637,1.6066,2462.6,2462.2,4.06128]
[1727815887817,1.6066,2462.6,2462.0,4.06167]
[1727815888204,4.06161,2462.1,2461.4,4.06263]
[1727815888404,4.06212,2461.8,2461.2,4.469211]
[1727815888840,4.06212,2461.8,2461.0,1.593]
[1727815888841,4.06226,2461.7,2461.0,5.65628]
[1727815889044,4.06226,2461.7,2461.1,4.06313]
[1727815889342,4.06251,2461.6,2461.0,8.12657]
[1727815889498,4.06217,2461.8,2461.3,4.06277]
[1727815889704,1.5407,2461.9,2461.0,4.06328]
[1727815889903,1.5407,2461.9,2461.1,0.08125171]
[1727815890129,5.60269,2461.9,2461.3,4.06279]
[1727815890331,4.06206,2461.8,2461.3,4.06279]
[1727815890717,4.06206,2461.8,2461.2,4.06291]
[1727815891157,4.06228,2461.7,2461.2,4.06291]
[1727815891456,1.5407,2461.9,2461.3,4.06279]
[1727815891603,1.637,2462.7,2461.9,4.0618]
[1727815891807,4.06088,2462.6,2461.9,4.06181]
[1727815892041,1.637,2462.7,2462.0,0.04277018]
[1727815892257,1.637,2462.7,2462.4,4.06099]
[1727815892416,10.23183352,2463.2,2462.5,0.06119474]
[1727815892417,1.637,2463.1,2462.5,0.06119474]
[1727815892615,1.637,2463.1,2461.9,4.06185]
[1727815892616,5.69701,2463.1,2462.2,0.08120505]
[1727815892854,5.28289928,2463.6,2463.1,4.05983]
[1727815892855,1.637,2463.5,2463.1,4.05983]
[1727815893146,1.637,2463.5,2463.1,8.11966]
[1727815893306,0.0818779,2463.6,2463.0,4.05998]
[1727815893617,0.0818779,2463.6,2462.3,5.6602]
[1727815893618,1.637,2463.2,2462.6,4.06063]
[1727815893825,1.637,2463.2,2462.5,4.06084]
[1727815894011,5.69686,2463.2,2462.6,4.06072]
[1727815894354,1.637,2463.2,2462.6,4.06072]
[1727815894504,1.637,2463.2,2462.5,4.06082]
[1727815894505,8.11998,2463.1,2462.5,4.06082]
[1727815894707,4.05993,2463.1,2462.4,4.06107]
[1727815894949,1.637,2463.2,2462.6,4.06072]
[1727815895234,4.06006,2463.1,2462.7,0.08120055]
[1727815895440,1.637,2463.2,2462.4,4.06096]
[1727815895605,1.637,2463.2,2461.5,5.71528]
[1727815895606,4.06091,2462.5,2461.5,5.71528]
[1727815895810,4.06043,2462.8,2462.2,4.06139]
[1727815896048,4.06043,2462.8,2461.9,4.0618]
[1727815896049,4.06099,2462.5,2461.9,8.12362]
[1727815896252,6.82512138,2463.1,2462.5,4.06076]
[1727815896253,4.06003,2463.1,2462.5,4.06076]
[1727815896409,4.05967,2463.3,2462.5,4.06076]
[1727815896607,4.05967,2463.3,2462.7,4.06048]
[1727815897046,4.06,2463.1,2462.4,4.06104]
[1727815897209,4.06018,2463.0,2462.4,4.06107]
[1727815897550,6.70842138,2463.4,2462.3,4.06111]
[1727815897551,4.06042,2462.8,2462.3,4.06111]
[1727815897721,4.06042,2462.8,2462.1,4.06141]
[1727815897924,4.06081,2462.6,2462.0,4.06173]
[1727815898142,4.0615,2462.2,2461.7,4.06214]
[1727815898310,4.0615,2462.2,2461.6,4.0623]
[1727815898505,4.0615,2462.2,2461.5,5.57276]
[1727815898506,4.06182,2462.0,2461.5,4.06246]
[1727815898707,1.5794,2462.4,2461.5,4.0624]
[1727815898934,1.5794,2462.4,2461.7,4.0622]
[1727815898935,5.64058,2462.4,2461.7,4.0622]
[1727815899138,5.64058,2462.4,2461.5,4.06245]
[1727815899139,4.06186,2462.0,2461.5,4.06245]
[1727815899346,4.06186,2462.0,2461.3,4.06279]
[1727815899654,4.06223,2461.8,2461.2,4.875579]
[1727815899960,4.06223,2461.8,2460.5,4.0641]
[1727815899961,4.06319,2461.2,2460.5,4.0641]
[1727815900108,1.5006,2461.7,2460.3,1.5394]
[1727815900306,1.5006,2461.7,2461.3,4.06279]
[1727815900510,1.5006,2461.7,2461.4,0.04278198]
[1727815900705,0.04654397,2461.6,2461.4,0.04278198]
[1727815900906,1.5006,2461.7,2461.3,4.06277]
[1727815901155,1.5681,2462.1,2461.6,4.06234]
[1727815901312,1.5681,2462.1,2461.3,0.812571]
[1727815901313,4.06207,2461.8,2461.3,4.875461]
[1727815901521,4.06207,2461.8,2461.3,0.812571]
[1727815901727,0.04654826,2461.7,2461.3,0.812571]
[1727815902079,4.06155,2462.2,2461.5,4.06247]
[1727815902235,0.04654397,2461.6,2461.5,4.06256]
[1727815902435,0.04654397,2461.6,2461.4,4.06271]
[1727815902436,4.06115,2462.4,2461.8,4.0619]
[1727815902637,5.57582,2462.5,2461.8,4.0619]
[1727815902958,0.04657827,2462.4,2462.0,4.06173]
[1727815903156,0.04657827,2462.4,2462.3,4.06124]
[1727815903321,1.5148,2462.9,2462.4,4.06093]
[1727815903673,4.06052,2462.8,2462.2,4.06131]
[1727815903872,1.5148,2462.9,2462.2,4.06131]
[1727815904022,5.57507,2462.9,2462.4,4.06104]
[1727815904370,4.06049,2462.8,2462.0,1.5601]
[1727815904534,4.06049,2462.8,2462.0,2.01611]
[1727815904734,4.06049,2462.8,2462.2,4.06139]
[1727815905167,4.06075,2462.6,2462.1,4.06155]
[1727815905486,1.6559,2463.3,2462.1,4.06153]
[1727815905635,4.05995,2463.1,2462.5,4.06077]
[1727815905828,8.12065,2462.9,2462.3,4.06113]
[1727815906069,4.06028,2462.9,2462.3,8.12226]
[1727815906253,8.12064,2462.9,2462.3,4.06113]
[1727815906439,8.12064,2462.9,2462.2,3.0]
[1727815906440,4.06028,2462.9,2462.2,4.06139]
[1727815906643,4.06028,2462.9,2462.4,4.06107]
[1727815906841,4.06039,2462.9,2462.0,2.01611]
[1727815907044,4.06043,2462.8,2462.0,2.01611]
[1727815907258,4.06043,2462.8,2462.3,4.06123]
[1727815907770,0.55,2463.2,2461.7,1.5296]
[1727815907958,4.06099,2462.5,2461.8,4.06195]
[1727815908237,4.06124,2462.3,2461.8,4.06195]
[1727815908431,4.06124,2462.3,2461.6,4.06229]
[1727815908777,1.6494,2462.5,2460.5,9.26508138]
[1727815908778,4.06191,2461.9,2461.4,4.14385071]
[1727815908928,4.06151,2462.2,2461.6,4.06229]
[1727815909158,4.06151,2462.2,2461.6,8.12458]
[1727815909390,1.6298,2462.3,2461.4,0.41438507]
[1727815909589,4.06182,2462.0,2461.4,8.12526]
[1727815909912,1.6298,2462.3,2461.6,4.06237]
[1727815910066,4.0612,2462.4,2461.6,4.06237]
[1727815910067,4.06117,2462.4,2461.8,4.06196]
[1727815910397,4.06117,2462.4,2461.0,4.06337]
[1727815910398,4.06175,2462.0,2461.0,4.06337]
[1727815910600,4.06185,2462.0,2461.4,4.06259]
[1727815910816,4.06185,2462.0,2460.2,1.69581104]
[1727815910817,4.06096,2462.5,2459.5,0.82336724]
[1727815910818,4.06434,2460.5,2459.5,0.82336724]
[1727815910961,5.64169,2459.8,2459.0,4.06658]
[1727815911156,5.20102138,2459.7,2458.9,1.641]
[1727815911356,4.06639,2459.2,2458.4,1.641]
[1727815911605,5.20102138,2459.3,2458.5,0.570884]
[1727815911755,5.20102138,2459.3,2457.9,4.06844]
[1727815911756,4.06713,2458.8,2457.9,5.73084]
[1727815911959,5.6881,2459.2,2458.1,4.06803]
[1727815912406,4.06688,2458.9,2458.1,4.06803]
[1727815912700,5.20102138,2458.9,2457.9,1.6624]
[1727815913197,5.68808,2459.2,2458.2,4.06796]
[1727815913504,4.0668,2459.0,2458.2,4.06796]
[1727815913672,4.06767,2458.5,2457.9,1.6624]
[1727815913859,4.06799,2458.3,2457.4,5.63793]
[1727815914063,4.06799,2458.3,2457.6,4.06898]
[1727815914263,4.06799,2458.3,2457.2,4.06963]
[1727815914264,5.20102138,2458.1,2457.2,4.06963]
[1727815914559,4.06854,2457.9,2457.2,4.06963]
[1727815914865,5.57657,2458.2,2457.4,4.06929]
[1727815915184,5.57657,2458.2,2457.2,4.883491]
[1727815915185,4.06849,2458.0,2457.2,4.883491]
[1727815915383,4.06865,2457.9,2457.2,4.06953]
[1727815915559,4.06849,2458.0,2457.3,0.08137208]
[1727815915760,4.06901,2457.6,2457.0,4.06993]
[1727815916114,5.20102138,2457.7,2455.7,1.6463]
[1727815916318,4.06809,2458.2,2456.0,4.07162]
[1727815916319,5.20102138,2456.9,2456.0,4.07162]
[1727815916611,9.27131138,2456.9,2456.2,4.07119]
[1727815916807,0.04380426,2456.8,2456.2,4.07127]
[1727815916964,4.11418426,2456.8,2456.2,4.07127]
[1727815917155,0.04380426,2456.8,2456.2,4.885558]
[1727815917358,0.04380426,2456.8,2456.2,0.814288]
[1727815917602,4.11414426,2456.8,2456.2,4.0712]
[1727815917823,5.20102138,2456.5,2455.7,1.6463]
[1727815918105,5.20102138,2456.5,2455.2,0.06161]
[1727815918106,5.20102138,2456.1,2455.5,4.07245]
[1727815918289,4.11447566,2456.4,2455.5,4.07241]
[1727815918489,0.04347196,2456.0,2455.6,4.07219]
[1727815918810,0.04332674,2455.9,2455.4,4.07253]
[1727815918963,5.20102138,2456.1,2455.5,4.07245]
[1727815919158,0.0432335,2455.8,2455.2,1.64101]
[1727815919403,5.57751,2456.0,2455.2,0.06161]
[1727815919700,3.92328387,2455.8,2455.2,0.06161]
[1727815920117,0.04176199,2455.7,2455.3,0.0814463]
[1727815920266,0.04176199,2455.7,2455.6,4.07232]
[1727815920603,4.07112,2456.4,2455.7,4.07215]
[1727815920804,1.6648,2456.5,2455.8,0.08142539]
[1727815921008,1.6648,2456.5,2455.4,4.07258]
[1727815921009,4.07135,2456.2,2455.4,4.07258]
[1727815921162,5.23925683,2456.4,2455.2,0.06161]
[1727815921363,1.5427,2456.7,2455.8,4.07197]
[1727815921364,0.03822252,2456.1,2455.8,4.07197]
[1727815921560,4.07082,2456.6,2455.8,4.886395]
[1727815921768,4.06986,2457.1,2456.3,4.07111]
[1727815921769,1.6168,2457.1,2456.3,4.07111]
[1727815921993,1.6168,2457.1,2456.5,4.0708]
[1727815922213,1.6168,2457.1,2456.6,0.08139612]
[1727815922369,1.6168,2457.1,2456.5,4.0708]
[1727815922370,1.6168,2457.1,2456.5,4.0707]
[1727815922569,9.27073138,2457.2,2456.3,4.07106]
[1727815922803,9.27073138,2457.2,2456.4,4.07097]
[1727815923009,5.20102138,2457.2,2456.3,0.407106]
[1727815923316,5.20102138,2457.2,2455.8,0.814425]
[1727815923317,5.66644,2456.7,2455.8,3.0]
[1727815923517,4.07068,2456.6,2455.9,4.07166]
[1727815923673,5.66642,2456.7,2455.7,8.6577]
[1727815923873,5.66642,2456.7,2455.8,3.86577]
[1727815924073,1.5959,2456.7,2455.7,1.5856]
[1727815924308,4.07121,2456.3,2455.5,7.0724]
[1727815924526,1.5959,2456.7,2455.5,7.0724]
[1727815924527,4.07095,2456.5,2455.7,4.07214]
[1727815924669,4.071,2456.4,2455.8,0.08142466]
[1727815924874,5.66644,2456.7,2455.7,4.07214]
[1727815925113,4.07068,2456.6,2455.9,4.07181]
[1727815925499,4.07085,2456.5,2456.0,0.08142468]
[1727815925704,1.5959,2456.7,2455.5,3.0]
[1727815926026,3.0,2457.4,2455.5,3.0]
[1727815926027,0.42579358,2457.4,2456.9,4.07001]
[1727815926228,0.42579358,2457.4,2457.3,7.0695]
[1727815926518,5.6272,2458.7,2457.9,4.06837]
[1727815926723,4.06746,2458.6,2457.9,4.06837]
[1727815926881,1.56,2459.2,2458.4,3.0]
[1727815927079,4.06475,2460.2,2458.4,3.0]
[1727815927080,5.62561,2459.7,2458.4,3.0]
[1727815927275,4.06654,2459.1,2458.4,3.0]
[1727815927681,4.06654,2459.1,2458.3,4.06773]
[1727815927975,4.06656,2459.1,2458.3,4.06784]
[1727815928110,4.06648,2459.2,2458.5,4.06748]
[1727815928428,4.06683,2459.0,2458.1,4.06809]
[1727815928609,0.813253,2459.2,2458.4,4.06764]
[1727815928813,4.06614,2459.4,2458.6,4.06722]
[1727815928985,1.56,2459.7,2458.7,0.0813337]
[1727815929188,4.0657,2459.6,2458.8,4.06691]
[1727815929534,1.56,2459.7,2459.2,4.06625]
[1727815929691,1.5304,2460.1,2459.3,0.08131205]
[1727815930026,4.06571,2459.6,2458.5,4.5243]
[1727815930233,4.06571,2459.6,2458.2,4.06787]
[1727815930234,4.06682,2459.0,2458.2,4.06787]
[1727815930585,1.623,2459.1,2458.4,4.06767]
[1727815930788,1.623,2459.1,2458.5,4.06749]
[1727815931027,5.68955,2459.1,2458.4,4.06767]
[1727815931395,4.06671,2459.0,2458.2,4.06791]
[1727815931602,4.635681,2459.0,2458.2,4.06791]
[1727815931798,4.635681,2459.0,2458.0,4.06829]
[1727815931799,0.568971,2459.0,2458.0,4.06829]
[1727815932017,1.623,2459.1,2458.0,4.06829]
[1727815932018,4.06735,2458.7,2458.0,4.06829]
[1727815932198,1.623,2459.1,2456.9,4.07015]
[1727815932199,4.0677,2458.4,2457.6,4.06887]
[1727815932386,1.623,2459.1,2457.7,0.08135774]
[1727815932387,4.06707,2458.8,2457.7,0.08135774]
[1727815932592,4.06677,2459.0,2458.3,4.06774]
[1727815932791,4.06677,2459.0,2458.4,0.08134532]
[1727815933199,4.06686,2458.9,2458.4,0.08134532]
[1727815933401,4.06705,2458.8,2458.2,4.06795]
[1727815933991,4.06705,2458.8,2458.0,4.06829]
[1727815934316,4.06705,2458.8,2457.5,7.06912]
[1727815934317,4.06798,2458.3,2457.6,4.06895]
[1727815934522,4.06747,2458.6,2457.8,4.06853]
[1727815934699,0.406705,2458.8,2457.6,4.0689]
[1727815934700,4.06764,2458.5,2457.6,4.0689]
[1727815935035,4.10382696,2458.4,2457.8,4.06864]
[1727815935193,0.03614696,2458.4,2457.8,4.06864]
[1727815935393,0.03614696,2458.4,2457.9,4.0923302]
[1727815935724,4.06792,2458.3,2457.7,4.06871]
[1727815935888,4.06767,2458.5,2457.8,4.06865]
[1727815936199,4.06767,2458.5,2457.7,4.06871]
[1727815936200,0.03610818,2458.4,2457.9,4.06841]
[1727815936400,4.10379818,2458.4,2457.9,4.06841]
[1727815936616,0.03610818,2458.4,2457.4,3.0]
[1727815936841,0.03610818,2458.4,2458.2,4.06801]
[1727815937129,1.623,2459.1,2458.2,4.06801]
[1727815937130,0.03611681,2458.3,2458.2,4.06801]
[1727815937427,1.623,2459.1,2458.3,4.06781]
[1727815937428,4.06697,2458.9,2458.3,4.06781]
[1727815937638,5.68959,2459.1,2458.4,0.08134093]
[1727815937639,1.623,2459.1,2458.4,0.08134093]
[1727815937790,1.649,2459.6,2459.1,4.06641]
[1727815937991,1.649,2459.6,2459.2,0.08132085]
[1727815938537,4.06497,2460.1,2459.2,0.08132085]
[1727815938694,6.59295457,2460.4,2459.7,4.06549]
[1727815938695,1.5864,2460.0,2459.7,4.06549]
[1727815938897,4.06553,2459.7,2459.2,5.6146]
[1727815939220,4.06502,2460.1,2459.4,4.06587]
[1727815939410,4.06502,2460.1,2459.4,8.13179]
[1727815939619,4.06502,2460.1,2459.4,4.06587]
[1727815939804,4.06501,2460.1,2459.5,0.04297014]
[1727815940144,4.06392,2460.7,2459.7,1.5483]
[1727815940145,4.0643,2460.5,2459.7,1.5483]
[1727815940438,4.06464,2460.3,2459.7,1.5483]
[1727815940598,4.06464,2460.3,2458.6,4.06724]
[1727815940599,4.06492,2460.1,2459.5,4.06585]
[1727815940798,4.06492,2460.1,2459.2,4.0663]
[1727815940799,0.812956,2460.1,2459.2,4.0663]
[1727815941119,4.06531,2459.9,2459.3,4.06604]
[1727815941302,4.06531,2459.9,2459.2,4.0663]
[1727815941510,1.5527,2459.9,2458.5,1.6509]
[1727815941708,4.06586,2459.5,2458.8,4.06687]
[1727815941907,4.06586,2459.5,2458.5,1.6509]
[1727815941908,0.561784,2459.8,2458.7,4.06715]
[1727815942131,0.561784,2459.8,2458.5,1.6509]
[1727815942132,5.61801,2459.9,2459.3,4.06609]
[1727815942348,5.61801,2459.9,2459.5,4.06583]
[1727815942349,1.5527,2459.9,2459.5,4.06583]
[1727815942499,4.06493,2460.1,2459.6,0.04881321]
[1727815942695,4.06533,2459.9,2459.5,0.0688359]
[1727815942895,1.5472,2460.3,2459.5,0.0688359]
[1727815942896,8.12965,2460.2,2459.5,0.0688359]
[1727815943118,8.12965,2460.2,2459.3,4.06611]
[1727815943119,4.06556,2459.7,2459.1,4.06639]
[1727815943361,0.967685,2460.2,2459.1,4.06639]
[1727815943362,4.06547,2459.8,2459.1,4.06639]
[1727815943521,0.967685,2460.2,2458.9,7.0668]
[1727815943522,5.032435,2460.2,2458.9,7.0668]
[1727815943735,4.06549,2459.8,2458.6,4.06731]
[1727815944044,0.967685,2460.2,2458.5,1.6509]
[1727815944045,4.06601,2459.5,2458.9,4.06674]
[1727815944245,8.13132,2459.7,2459.0,8.13316]
[1727815944417,4.0658,2459.6,2459.0,4.06658]
[1727815944814,4.06565,2459.7,2459.0,4.06658]
[1727815945360,0.42560131,2460.8,2459.0,4.06658]
[1727815945361,4.06437,2460.5,2459.7,4.06543]
[1727815945563,0.42560131,2460.8,2460.4,4.06429]
[1727815945865,6.66373737,2462.1,2460.8,4.06356]
[1727815945866,4.06257,2461.5,2460.8,4.06356]
[1727815946015,1.5843,2461.6,2460.9,0.08126033]
[1727815946215,1.5843,2461.6,2460.2,4.06465]
[1727815946216,4.06356,2460.9,2460.2,4.06465]
[1727815946412,4.0628,2461.4,2460.1,4.06478]
[1727815946657,4.0628,2461.4,2459.9,1.5279]
[1727815946658,4.06416,2460.6,2459.9,5.59295]
[1727815946889,5.72259,2460.8,2460.1,4.06473]
[1727815947049,4.06344,2461.0,2460.3,4.06441]
[1727815947252,4.06373,2460.8,2460.3,4.06441]
[1727815947504,4.06373,2460.8,2460.1,4.06475]
[1727815947652,4.06373,2460.8,2460.0,4.06497]
[1727815947653,4.06414,2460.6,2460.0,4.06497]
[1727815947999,4.06414,2460.6,2459.9,5.59302]
[1727815948293,0.812718,2460.8,2460.4,4.06434]